[Event "NJSK 2026 Meisjes C"]
[Site "Helmond, Netherlands"]
[Date "2026.04.29"]
[Round "5.1"]
[White "Elangkumaran, Anumitra"]
[Black "Luong, Thao"]
[Result "0-1"]
[TimeControl "90min/40moves + 30min + 30sec/move"]
[WhiteTitle "-"]
[BlackTitle "-"]
[WhiteFideId "40109070"]
[BlackFideId "1091980"]
[WhiteElo "1768"]
[BlackElo "1855"]

1. e4 {[%clk 01:30:57]} {[%emt 00:00:02]} e5 {[%clk 01:30:49]} {[%emt
00:00:07]} 2. Nf3 {[%clk 01:31:18]} {[%emt 00:00:14]} Nc6 {[%clk 01:31:09]}
{[%emt 00:00:11]} 3. Bc4 {[%clk 01:31:36]} {[%emt 00:00:12]} Bc5 {[%clk
01:31:32]} {[%emt 00:00:05]} 4. c3 {[%clk 01:31:56]} {[%emt 00:00:11]} Nf6
{[%clk 01:31:57]} {[%emt 00:00:04]} 5. d3 {[%clk 01:32:15]} {[%emt 00:00:12]}
d6 {[%clk 01:32:20]} {[%emt 00:00:07]} 6. Nbd2 {[%clk 01:32:32]} {[%emt
00:00:13]} Be6 {[%clk 01:32:19]} {[%emt 00:00:31]} 7. Bb3 {[%clk 01:32:20]}
{[%emt 00:00:43]} Ne7 {[%clk 01:31:52]} {[%emt 00:00:55]} 8. Nf1 {[%clk
01:31:56]} {[%emt 00:00:55]} Ng6 {[%clk 01:32:13]} {[%emt 00:00:09]} 9. Ng3
{[%clk 01:32:04]} {[%emt 00:00:22]} h6 {[%clk 01:31:42]} {[%emt 00:01:01]} 10.
Be3 {[%clk 01:31:37]} {[%emt 00:00:57]} Bb6 {[%clk 01:31:57]} {[%emt 00:00:14]}
11. d4 {[%clk 01:28:30]} {[%emt 00:03:38]} O-O {[%clk 01:29:03]} {[%emt
00:03:25]} 12. O-O {[%clk 01:26:26]} {[%emt 00:02:33]} c6 {[%clk 01:16:28]}
{[%emt 00:13:05]} 13. h3 {[%clk 01:16:05]} {[%emt 00:10:51]} d5 {[%clk
01:10:55]} {[%emt 00:06:04]} 14. exd5 {[%clk 00:58:12]} {[%emt 00:18:23]} Nxd5
{[%clk 01:08:23]} {[%emt 00:03:01]} 15. Bxd5 {[%clk 00:53:24]} {[%emt
00:05:18]} Bxd5 {[%clk 01:07:32]} {[%emt 00:01:21]} 16. Nxe5 {[%clk 00:51:35]}
{[%emt 00:02:18]} Nxe5 {[%clk 01:07:51]} {[%emt 00:00:12]} 17. dxe5 {[%clk
00:51:37]} {[%emt 00:00:29]} Bxe3 {[%clk 01:07:47]} {[%emt 00:00:33]} 18. fxe3
{[%clk 00:51:07]} {[%emt 00:01:00]} Qg5 {[%clk 01:05:32]} {[%emt 00:02:46]} 19.
Qe1 {[%clk 00:48:43]} {[%emt 00:02:53]} Qxe5 {[%clk 01:04:06]} {[%emt
00:01:55]} 20. e4 {[%clk 00:42:20]} {[%emt 00:06:54]} Be6 {[%clk 01:02:28]}
{[%emt 00:02:08]} 21. Rf3 {[%clk 00:38:39]} {[%emt 00:04:11]} Rad8 {[%clk
00:56:54]} {[%emt 00:06:04]} 22. b3 {[%clk 00:35:46]} {[%emt 00:03:24]} Rd7
{[%clk 00:53:08]} {[%emt 00:04:15]} 23. Rd1 {[%clk 00:33:22]} {[%emt 00:02:55]}
Rfd8 {[%clk 00:46:37]} {[%emt 00:07:00]} 24. Rxd7 {[%clk 00:32:27]} {[%emt
00:01:26]} Rxd7 {[%clk 00:46:57]} {[%emt 00:00:09]} 25. Qe2 {[%clk 00:31:24]}
{[%emt 00:01:35]} Qd6 {[%clk 00:43:58]} {[%emt 00:03:28]} 26. Nf5 {[%clk
00:26:10]} {[%emt 00:05:44]} Bxf5 {[%clk 00:41:46]} {[%emt 00:02:41]} 27. exf5
{[%clk 00:14:21]} {[%emt 00:12:19]} Re7 {[%clk 00:39:53]} {[%emt 00:02:23]} 28.
Qd3 {[%clk 00:11:21]} {[%emt 00:03:30]} Qc5+ {[%clk 00:37:30]} {[%emt
00:02:53]} 29. Qd4 {[%clk 00:10:48]} {[%emt 00:01:04]} Qxd4+ {[%clk 00:36:24]}
{[%emt 00:01:36]} 30. cxd4 {[%clk 00:11:14]} {[%emt 00:00:03]} Re4 {[%clk
00:36:26]} {[%emt 00:00:28]} 31. Rd3 {[%clk 00:10:47]} {[%emt 00:00:58]} Re2
{[%clk 00:36:08]} {[%emt 00:00:48]} 32. a4 {[%clk 00:10:03]} {[%emt 00:01:15]}
Rb2 {[%clk 00:36:01]} {[%emt 00:00:36]} 33. Kf1 {[%clk 00:08:06]} {[%emt
00:02:27]} Kf8 {[%clk 00:35:22]} {[%emt 00:01:08]} 34. g4 {[%clk 00:05:56]}
{[%emt 00:02:41]} Ke7 {[%clk 00:29:12]} {[%emt 00:06:41]} 35. Ke1 {[%clk
00:05:40]} {[%emt 00:00:45]} Kd6 {[%clk 00:24:51]} {[%emt 00:04:50]} 36. Kd1
{[%clk 00:02:52]} {[%emt 00:03:19]} Kd5 {[%clk 00:14:53]} {[%emt 00:10:28]} 37.
Re3 {[%clk 00:01:26]} {[%emt 00:01:56]} Kd6 {[%clk 00:12:24]} {[%emt 00:02:59]}
38. Kc1 {[%clk 00:01:01]} {[%emt 00:00:55]} Rh2 {[%clk 00:11:44]} {[%emt
00:01:09]} 39. b4 {[%clk 00:00:44]} {[%emt 00:00:48]} a5 {[%clk 00:09:19]}
{[%emt 00:02:55]} 40. Rb3 {[%clk 00:00:38]} {[%emt 00:00:36]} axb4 {[%clk
00:08:49]} {[%emt 00:01:00]} 41. Rxb4 {[%clk 00:00:40]} {[%emt 00:00:28]} Kc7
{[%clk 00:09:06]} {[%emt 00:00:13]} 42. Rb3 {[%clk 00:00:33]} {[%emt 00:00:37]}
Ra2 {[%clk 00:09:15]} {[%emt 00:00:20]} 43. Re3 {[%clk 00:29:46]} {[%emt
00:01:17]} Kd7 {[%clk 00:38:52]} {[%emt 00:00:52]} 44. Rb3 {[%clk 00:29:52]}
{[%emt 00:00:26]} Kc8 {[%clk 00:35:59]} {[%emt 00:03:23]} 45. Re3 {[%clk
00:28:24]} {[%emt 00:01:57]} Kd8 {[%clk 00:33:56]} {[%emt 00:02:34]} 46. Rb3
{[%clk 00:28:27]} {[%emt 00:00:27]} Rxa4 {[%clk 00:33:49]} {[%emt 00:00:37]} 47.
Rxb7 {[%clk 00:28:20]} {[%emt 00:00:37]} Rxd4 {[%clk 00:34:04]} {[%emt
00:00:15]} 48. Rxf7 {[%clk 00:28:09]} {[%emt 00:00:40]} Rd7 {[%clk 00:34:19]}
{[%emt 00:00:15]} 49. Rxd7+ {[%clk 00:13:42]} {[%emt 00:14:57]} Kxd7 {[%clk
00:34:41]} {[%emt 00:00:08]} 50. h4 {[%clk 00:13:28]} {[%emt 00:00:45]} Kd6
{[%clk 00:34:45]} {[%emt 00:00:25]} 51. Kd2 {[%clk 00:11:06]} {[%emt 00:02:53]}
Ke5 {[%clk 00:34:44]} {[%emt 00:00:31]} 52. Ke3 {[%clk 00:10:44]} {[%emt
00:00:52]} c5 {[%clk 00:34:34]} {[%emt 00:00:39]} 53. Kf3 {[%clk 00:10:07]}
{[%emt 00:01:08]} c4 {[%clk 00:34:28]} {[%emt 00:00:36]} 54. Ke3 {[%clk
00:10:26]} {[%emt 00:00:10]} c3 {[%clk 00:34:36]} {[%emt 00:00:23]} 55. Kd3
{[%clk 00:09:20]} {[%emt 00:01:36]} Kf4 {[%clk 00:34:47]} {[%emt 00:00:18]} 56.
g5 {[%clk 00:09:21]} {[%emt 00:00:30]} hxg5 {[%clk 00:32:58]} {[%emt 00:02:18]}
57. f6 {[%clk 00:09:11]} {[%emt 00:00:40]} gxf6 {[%clk 00:33:24]} {[%emt
00:00:04]} 58. h5 {[%clk 00:09:35]} {[%emt 00:00:06]} Kf5 {[%clk 00:33:50]}
{[%emt 00:00:04]} 59. Kxc3 {[%clk 00:10:01]} {[%emt 00:00:03]} g4 {[%clk
00:34:10]} {[%emt 00:00:11]} 60. Kd3 {[%clk 00:10:28]} {[%emt 00:00:02]} Kg5
{[%clk 00:34:24]} {[%emt 00:00:16]} 61. Ke3 {[%clk 00:10:44]} {[%emt 00:00:15]}
Kxh5 {[%clk 00:34:47]} {[%emt 00:00:06]} 62. Kf2 {[%clk 00:11:08]} {[%emt
00:00:06]} Kh4 {[%clk 00:34:31]} {[%emt 00:00:46]} 63. Kg2 {[%clk 00:11:34]}
{[%emt 00:00:04]} g3 {[%clk 00:34:41]} {[%emt 00:00:21]} 64. Kg1 {[%clk
00:11:45]} {[%emt 00:00:16]} Kh3 {[%clk 00:34:58]} {[%emt 00:00:16]} 65. Kh1
{[%clk 00:12:12]} {[%emt 00:00:02]} g2+ {[%clk 00:35:20]} {[%emt 00:00:08]} 66.
Kg1 {[%clk 00:12:40]} {[%emt 00:00:03]} f5 {[%clk 00:35:43]} {[%emt 00:00:06]}
67. Kf2 {[%clk 00:13:06]} {[%emt 00:00:04]} Kh2 {[%clk 00:36:08]} {[%emt
00:00:05]} 68. Kf3 {[%clk 00:13:31]} {[%emt 00:00:05]} g1=Q {[%clk 00:36:24]}
{[%emt 00:00:16]} 69. Kf4 {[%clk 00:13:55]} {[%emt 00:00:04]} Qg3+ {[%clk
00:36:37]} {[%emt 00:00:17]} 70. Kxf5 {[%clk 00:14:16]} {[%emt 00:00:09]} Qe3
{[%clk 00:36:54]} {[%emt 00:00:12]} 71. Kg4 {[%clk 00:14:43]} {[%emt 00:00:04]}
Qf2 {[%clk 00:37:01]} {[%emt 00:00:22]} 72. Kh5 {[%clk 00:15:08]} {[%emt
00:00:06]} Qg3 {[%clk 00:37:12]} {[%emt 00:00:20]} 0-1

[Event "NJSK 2026 Meisjes C"]
[Site "Helmond, Netherlands"]
[Date "2026.04.29"]
[Round "5.3"]
[White "Panzar, Emilia-Andreea"]
[Black "Gnanasekaran, Keerthi"]
[Result "1-0"]
[TimeControl "90min/40moves + 30min + 30sec/move"]
[WhiteTitle "-"]
[BlackTitle "-"]
[WhiteFideId "42210852"]
[BlackFideId "40110508"]
[WhiteElo "1585"]
[BlackElo "1647"]

1. d4 {[%clk 01:30:56]} {[%emt 00:00:04]} Nf6 {[%clk 01:30:52]} {[%emt
00:00:08]} 2. Bf4 {[%clk 01:31:07]} {[%emt 00:00:19]} c6 {[%clk 01:30:58]}
{[%emt 00:00:24]} 3. Nf3 {[%clk 01:31:02]} {[%emt 00:00:34]} Qb6 {[%clk
01:31:15]} {[%emt 00:00:14]} 4. Qc1 {[%clk 01:29:15]} {[%emt 00:02:17]} d6
{[%clk 01:30:52]} {[%emt 00:00:51]} 5. e3 {[%clk 01:28:26]} {[%emt 00:01:21]}
Nh5 {[%clk 01:30:31]} {[%emt 00:00:49]} 6. Bg3 {[%clk 01:27:24]} {[%emt
00:01:33]} Nxg3 {[%clk 01:30:50]} {[%emt 00:00:11]} 7. hxg3 {[%clk 01:27:28]}
{[%emt 00:00:27]} g6 {[%clk 01:28:57]} {[%emt 00:02:23]} 8. Bd3 {[%clk
01:26:54]} {[%emt 00:01:04]} Bg7 {[%clk 01:27:38]} {[%emt 00:01:49]} 9. Nbd2
{[%clk 01:26:16]} {[%emt 00:01:08]} d5 {[%clk 01:17:26]} {[%emt 00:10:41]} 10.
c3 {[%clk 01:25:09]} {[%emt 00:01:38]} O-O {[%clk 01:15:44]} {[%emt 00:02:11]}
11. Qc2 {[%clk 01:23:57]} {[%emt 00:01:43]} Re8 {[%clk 01:12:34]} {[%emt
00:03:40]} 12. Ng5 {[%clk 01:20:11]} {[%emt 00:04:17]} h6 {[%clk 01:11:31]}
{[%emt 00:01:31]} 13. Nxf7 {[%clk 01:17:37]} {[%emt 00:03:06]} Kxf7 {[%clk
01:04:53]} {[%emt 00:07:07]} 14. Bxg6+ {[%clk 01:17:55]} {[%emt 00:00:12]} Kf8
{[%clk 01:05:17]} {[%emt 00:00:05]} 15. Bxe8 {[%clk 01:17:38]} {[%emt
00:00:48]} Kxe8 {[%clk 01:05:37]} {[%emt 00:00:09]} 16. Qg6+ {[%clk 01:15:53]}
{[%emt 00:02:16]} Kf8 {[%clk 01:05:55]} {[%emt 00:00:11]} 17. O-O-O {[%clk
01:07:11]} {[%emt 00:09:13]} Qa6 {[%clk 01:00:56]} {[%emt 00:05:28]} 18. Nf3
{[%clk 01:02:29]} {[%emt 00:05:13]} c5 {[%clk 00:50:41]} {[%emt 00:10:44]} 19.
Qxa6 {[%clk 00:56:13]} {[%emt 00:06:47]} Nxa6 {[%clk 00:50:32]} {[%emt
00:00:38]} 20. dxc5 {[%clk 00:56:35]} {[%emt 00:00:10]} e6 {[%clk 00:49:21]}
{[%emt 00:01:40]} 21. g4 {[%clk 00:52:11]} {[%emt 00:04:55]} Nxc5 {[%clk
00:45:57]} {[%emt 00:03:53]} 22. g5 {[%clk 00:50:48]} {[%emt 00:01:53]} hxg5
{[%clk 00:36:02]} {[%emt 00:10:25]} 23. Nxg5 {[%clk 00:51:08]} {[%emt
00:00:11]} a5 {[%clk 00:35:08]} {[%emt 00:01:24]} 24. Rh3 {[%clk 00:47:02]}
{[%emt 00:04:36]} b6 {[%clk 00:30:27]} {[%emt 00:05:11]} 25. Rf3+ {[%clk
00:46:22]} {[%emt 00:01:09]} Ke8 {[%clk 00:28:29]} {[%emt 00:02:28]} 26. Rh1
{[%clk 00:46:09]} {[%emt 00:00:44]} Nd3+ {[%clk 00:27:07]} {[%emt 00:01:51]} 27.
Kc2 {[%clk 00:45:56]} {[%emt 00:00:43]} Ne5 {[%clk 00:26:57]} {[%emt 00:00:39]}
28. Rf4 {[%clk 00:45:07]} {[%emt 00:01:21]} Nc6 {[%clk 00:24:21]} {[%emt
00:03:04]} 29. Rf7 {[%clk 00:42:59]} {[%emt 00:02:38]} Ra7 {[%clk 00:22:26]}
{[%emt 00:02:24]} 30. Rxa7 {[%clk 00:41:06]} {[%emt 00:02:26]} Nxa7 {[%clk
00:22:43]} {[%emt 00:00:14]} 31. Rd1 {[%clk 00:37:53]} {[%emt 00:03:42]} Ke7
{[%clk 00:21:26]} {[%emt 00:01:47]} 32. Nf3 {[%clk 00:35:07]} {[%emt 00:03:16]}
Bb7 {[%clk 00:20:52]} {[%emt 00:01:04]} 33. Nd4 {[%clk 00:35:07]} {[%emt
00:00:31]} Kf7 {[%clk 00:17:46]} {[%emt 00:03:34]} 34. f4 {[%clk 00:33:43]}
{[%emt 00:01:55]} Kf6 {[%emt 00:02:45]} 35. g4 {[%clk 00:33:08]} {[%emt
00:01:03]} e5 {[%clk 00:15:19]} {[%emt 00:00:43]} 36. Nf3 {[%clk 00:31:57]}
{[%emt 00:01:42]} exf4 {[%clk 00:14:58]} {[%emt 00:00:51]} 37. exf4 {[%clk
00:32:20]} {[%emt 00:00:08]} Nb5 {[%clk 00:12:31]} {[%emt 00:02:56]} 38. Ne5
{[%clk 00:29:25]} {[%emt 00:03:26]} Ke6 {[%clk 00:11:22]} {[%emt 00:01:38]} 39.
Re1 {[%clk 00:28:58]} {[%emt 00:00:58]} Kd6 {[%clk 00:10:33]} {[%emt 00:01:17]}
40. Nf7+ {[%clk 00:28:10]} {[%emt 00:01:19]} Kd7 {[%clk 00:09:35]} {[%emt
00:01:27]} 41. g5 {[%clk 00:27:20]} {[%emt 00:01:21]} d4 {[%clk 00:08:54]}
{[%emt 00:01:11]} 42. c4 {[%clk 00:27:10]} {[%emt 00:00:41]} Nd6 {[%clk
00:07:45]} {[%emt 00:01:38]} 43. Nxd6 {[%clk 00:27:23]} {[%emt 00:00:17]} Kxd6
{[%clk 00:08:11]} {[%emt 00:00:04]} 44. f5 {[%clk 00:27:25]} {[%emt 00:00:29]}
Be5 {[%clk 00:06:57]} {[%emt 00:01:43]} 45. g6 {[%clk 00:26:54]} {[%emt
00:01:01]} Bc8 {[%clk 00:06:39]} {[%emt 00:00:48]} 46. Rf1 {[%clk 00:26:14]}
{[%emt 00:01:11]} Ke7 {[%clk 00:06:33]} {[%emt 00:00:34]} 47. Kd2 {[%clk
00:25:16]} {[%emt 00:01:29]} Kf6 {[%clk 00:06:43]} {[%emt 00:00:19]} 48. b3
{[%clk 00:25:26]} {[%emt 00:00:22]} Kg5 {[%clk 00:06:23]} {[%emt 00:00:48]} 49.
Rg1+ {[%clk 00:24:42]} {[%emt 00:01:15]} Kf6 {[%clk 00:01:24]} {[%emt
00:05:29]} 50. g7 {[%emt 00:00:24]} Bf4+ {[%clk 00:30:27]} {[%emt 00:01:24]} 51.
Kd1 {[%clk 00:54:39]} {[%emt 00:00:43]} Bxf5 {[%clk 00:30:08]} {[%emt
00:00:48]} 52. g8=Q {[%clk 00:54:49]} {[%emt 00:00:19]} Be3 {[%clk 00:30:18]}
{[%emt 00:00:21]} 53. Rf1 {[%clk 00:55:00]} {[%emt 00:00:19]} Ke5 {[%clk
00:30:04]} {[%emt 00:00:45]} 54. Qd5+ {[%clk 00:55:15]} {[%emt 00:00:14]} Kf6
{[%clk 00:30:31]} {[%emt 00:00:04]} 55. Rxf5+ {[%clk 00:55:08]} {[%emt
00:00:37]} Kg6 {[%clk 00:30:58]} {[%emt 00:00:03]} 56. Qe6+ {[%clk 00:55:24]}
{[%emt 00:00:13]} Kg7 {[%clk 00:31:23]} {[%emt 00:00:06]} 57. Rf7+ {[%clk
00:55:43]} {[%emt 00:00:11]} Kg8 {[%clk 00:31:50]} {[%emt 00:00:03]} 58. Qe8#
{[%clk 00:56:02]} {[%emt 00:00:11]} 1-0

[Event "NJSK 2026 Meisjes C"]
[Site "Helmond, Netherlands"]
[Date "2026.04.29"]
[Round "5.5"]
[White "Oruc, Siraz"]
[Black "De Koning, Mila"]
[Result "1/2-1/2"]
[TimeControl "90min/40moves + 30min + 30sec/move"]
[WhiteTitle "-"]
[BlackTitle "-"]
[WhiteFideId "40125874"]
[BlackFideId "40108694"]
[WhiteElo "1706"]
[BlackElo "1638"]

1. e4 {[%clk 01:30:58]} {[%emt 00:00:01]} e6 {[%clk 01:30:57]} {[%emt
00:00:03]} 2. d4 {[%clk 01:31:19]} {[%emt 00:00:09]} d5 {[%clk 01:31:24]}
{[%emt 00:00:03]} 3. e5 {[%clk 01:31:40]} {[%emt 00:00:09]} c5 {[%clk
01:31:49]} {[%emt 00:00:06]} 4. c3 {[%clk 01:32:03]} {[%emt 00:00:07]} Qb6
{[%clk 01:31:38]} {[%emt 00:00:41]} 5. Nf3 {[%clk 01:31:53]} {[%emt 00:00:40]}
Nc6 {[%clk 01:31:52]} {[%emt 00:00:15]} 6. Bd3 {[%clk 01:31:29]} {[%emt
00:00:55]} Bd7 {[%clk 01:32:13]} {[%emt 00:00:09]} 7. dxc5 {[%clk 01:29:06]}
{[%emt 00:02:53]} Bxc5 {[%clk 01:30:46]} {[%emt 00:01:55]} 8. O-O {[%clk
01:29:24]} {[%emt 00:00:13]} a5 {[%clk 01:18:52]} {[%emt 00:12:25]} 9. Nbd2
{[%clk 01:27:21]} {[%emt 00:02:33]} Nh6 {[%clk 01:12:56]} {[%emt 00:06:25]} 10.
Nb3 {[%clk 01:17:41]} {[%emt 00:10:10]} Ng4 {[%clk 00:56:32]} {[%emt 00:16:54]}
11. Nxc5 {[%clk 01:16:54]} {[%emt 00:01:17]} Qxc5 {[%clk 00:52:29]} {[%emt
00:04:33]} 12. Qe2 {[%clk 01:07:55]} {[%emt 00:09:29]} d4 {[%clk 00:34:23]}
{[%emt 00:18:36]} 13. Nxd4 {[%clk 00:50:54]} {[%emt 00:17:31]} Ngxe5 {[%clk
00:30:24]} {[%emt 00:04:29]} 14. Nxc6 {[%clk 00:44:32]} {[%emt 00:06:53]} Nxd3
{[%clk 00:25:03]} {[%emt 00:05:52]} 15. Qxd3 {[%clk 00:39:41]} {[%emt
00:05:21]} Bxc6 {[%clk 00:22:32]} {[%emt 00:03:00]} 16. Be3 {[%clk 00:29:11]}
{[%emt 00:11:00]} Qh5 {[%clk 00:19:13]} {[%emt 00:03:49]} 17. Bd4 {[%clk
00:27:35]} {[%emt 00:02:06]} Qg5 {[%clk 00:16:20]} {[%emt 00:03:23]} 18. Qg3
{[%clk 00:25:53]} {[%emt 00:02:12]} Qxg3 {[%clk 00:16:19]} {[%emt 00:00:31]} 19.
hxg3 {[%clk 00:25:18]} {[%emt 00:01:04]} f6 {[%clk 00:14:45]} {[%emt 00:02:04]}
20. Rfe1 {[%clk 00:23:29]} {[%emt 00:02:19]} Kf7 {[%clk 00:14:37]} {[%emt
00:00:39]} 21. Rad1 {[%clk 00:22:35]} {[%emt 00:01:24]} Bd5 {[%clk 00:14:00]}
{[%emt 00:01:06]} 22. b3 {[%clk 00:19:17]} {[%emt 00:03:49]} a4 {[%clk
00:11:49]} {[%emt 00:02:41]} 23. c4 {[%clk 00:16:10]} {[%emt 00:03:37]} Bc6
{[%clk 00:11:46]} {[%emt 00:00:32]} 24. b4 {[%clk 00:14:41]} {[%emt 00:02:00]}
b5 {[%clk 00:10:59]} {[%emt 00:01:17]} 25. cxb5 {[%clk 00:14:10]} {[%emt
00:01:00]} Bxb5 {[%clk 00:11:15]} {[%emt 00:00:14]} 26. Bc5 {[%clk 00:14:10]}
{[%emt 00:00:32]} a3 {[%clk 00:08:39]} {[%emt 00:03:05]} 27. Rc1 {[%clk
00:10:30]} {[%emt 00:04:09]} Rhd8 {[%clk 00:07:19]} {[%emt 00:01:51]} 28. Rc2
{[%clk 00:06:53]} {[%emt 00:04:07]} e5 {[%clk 00:05:35]} {[%emt 00:02:14]} 29.
Re3 {[%clk 00:04:57]} {[%emt 00:02:26]} Rd1+ {[%clk 00:04:42]} {[%emt
00:01:23]} 30. Kh2 {[%clk 00:05:19]} {[%emt 00:00:07]} Ra1 {[%clk 00:04:29]}
{[%emt 00:00:43]} 31. Rec3 {[%clk 00:04:23]} {[%emt 00:01:27]} Ke6 {[%clk
00:02:52]} {[%emt 00:02:07]} 32. g4 {[%clk 00:03:14]} {[%emt 00:01:39]} g6
{[%clk 00:02:11]} {[%emt 00:01:11]} 33. Kg3 {[%clk 00:02:38]} {[%emt 00:01:07]}
Bc6 {[%clk 00:01:44]} {[%emt 00:00:56]} 34. f3 {[%clk 00:02:30]} {[%emt
00:00:37]} Bd5 {[%clk 00:01:37]} {[%emt 00:00:38]} 35. b5 {[%clk 00:01:50]}
{[%emt 00:01:11]} Bxa2 {[%clk 00:01:17]} {[%emt 00:00:50]} 36. Rxa3 {[%clk
00:01:35]} {[%emt 00:00:45]} Rxa3 {[%clk 00:01:04]} {[%emt 00:00:43]} 37. Bxa3
{[%clk 00:02:03]} {[%emt 00:00:02]} Bd5 {[%clk 00:01:03]} {[%emt 00:00:31]} 38.
Bc5 {[%clk 00:01:55]} {[%emt 00:00:37]} Rb1 {[%clk 00:00:58]} {[%emt 00:00:34]}
39. b6 {[%clk 00:02:03]} {[%emt 00:00:24]} Kd7 {[%clk 00:00:46]} {[%emt
00:00:36]} 40. Be3 {[%clk 00:01:08]} {[%emt 00:01:30]} Ke6 {[%clk 00:00:41]}
{[%emt 00:00:35]} 41. Rc7 {[%clk 00:00:41]} {[%emt 00:00:57]} f5 {[%clk
00:27:55]} {[%emt 00:03:16]} 42. gxf5+ {[%clk 00:24:52]} {[%emt 00:06:20]} gxf5
{[%clk 00:27:03]} {[%emt 00:01:21]} 43. Bf2 {[%clk 00:22:20]} {[%emt 00:03:02]}
h5 {[%clk 00:22:11]} {[%emt 00:05:22]} 44. Kh2 {[%clk 00:19:27]} {[%emt
00:03:23]} Rb2 {[%clk 00:19:19]} {[%emt 00:03:22]} 45. Kg1 {[%clk 00:11:46]}
{[%emt 00:08:11]} Rb1+ {[%clk 00:11:37]} {[%emt 00:08:12]} 46. Kh2 {[%clk
00:12:09]} {[%emt 00:00:06]} 1/2-1/2

[Event "NJSK 2026 Meisjes C"]
[Site "Helmond, Netherlands"]
[Date "2026.04.29"]
[Round "5.6"]
[White "Bakker, Hannah"]
[Black "Urban, Hannah"]
[Result "1/2-1/2"]
[TimeControl "90min/40moves + 30min + 30sec/move"]
[WhiteTitle "-"]
[BlackTitle "-"]
[WhiteFideId "40107671"]
[BlackFideId "40109364"]
[WhiteElo "1634"]
[BlackElo "1438"]

1. e4 {[%clk 01:30:58]} {[%emt 00:00:03]} c5 {[%clk 01:30:53]} {[%emt
00:00:07]} 2. Nc3 {[%clk 01:31:17]} {[%emt 00:00:11]} g6 {[%clk 01:31:03]}
{[%emt 00:00:20]} 3. d4 {[%clk 01:31:24]} {[%emt 00:00:23]} cxd4 {[%clk
01:31:11]} {[%emt 00:00:22]} 4. Qxd4 {[%clk 01:31:38]} Nf6 {[%clk 01:31:16]}
{[%emt 00:00:40]} 5. Be3 {[%clk 01:31:18]} {[%emt 00:00:51]} Nc6 {[%clk
01:31:09]} {[%emt 00:00:37]} 6. Qd2 {[%clk 01:30:58]} {[%emt 00:00:50]} Bg7
{[%clk 01:29:44]} {[%emt 00:01:54]} 7. f3 {[%clk 01:30:09]} {[%emt 00:01:20]}
O-O {[%clk 01:27:05]} {[%emt 00:03:08]} 8. O-O-O {[%clk 01:29:07]} {[%emt
00:01:32]} a6 {[%clk 01:23:25]} {[%emt 00:04:11]} 9. Nge2 {[%clk 01:21:48]}
{[%emt 00:07:48]} d6 {[%clk 01:20:29]} {[%emt 00:03:26]} 10. g4 {[%clk
01:12:02]} {[%emt 00:10:16]} h5 {[%clk 01:06:44]} {[%emt 00:14:15]} 11. gxh5
{[%clk 01:05:42]} {[%emt 00:06:50]} Nxh5 {[%clk 01:06:02]} {[%emt 00:01:12]} 12.
Bh6 {[%clk 01:01:02]} {[%emt 00:05:09]} Ne5 {[%clk 01:02:59]} {[%emt 00:03:34]}
13. Bxg7 {[%emt 00:11:43]} Nxg7 {[%clk 00:58:35]} {[%emt 00:00:39]} 14. f4
{[%clk 00:48:57]} {[%emt 00:05:36]} Nc4 {[%clk 00:53:26]} {[%emt 00:05:38]} 15.
Qd3 {[%clk 00:45:09]} {[%emt 00:04:19]} b5 {[%clk 00:52:20]} {[%emt 00:01:38]}
16. Rg1 {[%clk 00:39:04]} {[%emt 00:06:35]} e6 {[%clk 00:46:48]} {[%emt
00:06:03]} 17. b3 {[%clk 00:34:12]} {[%emt 00:05:21]} Nb6 {[%clk 00:44:04]}
{[%emt 00:03:14]} 18. Qxd6 {[%clk 00:31:57]} {[%emt 00:02:45]} Bb7 {[%clk
00:42:12]} {[%emt 00:02:22]} 19. Qxd8 {[%clk 00:27:19]} {[%emt 00:05:08]} Rfxd8
{[%clk 00:41:21]} 20. Bh3 {[%clk 00:23:46]} {[%emt 00:05:24]} b4 {[%clk
00:41:13]} {[%emt 00:00:38]} 21. Nb1 {[%clk 00:19:29]} {[%emt 00:04:47]} Bxe4
{[%clk 00:39:41]} {[%emt 00:02:02]} 22. Nd2 {[%clk 00:19:01]} {[%emt 00:00:59]}
Bd5 {[%clk 00:39:02]} {[%emt 00:01:09]} 23. Ng3 {[%clk 00:17:24]} {[%emt
00:02:06]} Ra7 {[%clk 00:35:52]} {[%emt 00:03:40]} 24. Nde4 {[%clk 00:14:39]}
{[%emt 00:03:14]} Kh8 {[%clk 00:34:44]} {[%emt 00:01:39]} 25. c4 {[%clk
00:13:33]} {[%emt 00:01:36]} Rc8 {[%clk 00:34:55]} {[%emt 00:00:20]} 26. Kb2
{[%clk 00:12:49]} {[%emt 00:01:13]} Bxe4 {[%clk 00:34:22]} {[%emt 00:01:03]} 27.
Nxe4 {[%clk 00:13:03]} {[%emt 00:00:16]} a5 {[%clk 00:31:38]} {[%emt 00:03:14]}
28. Nd6 {[%clk 00:10:56]} {[%emt 00:02:37]} Rf8 {[%clk 00:30:08]} {[%emt
00:01:59]} 29. c5 {[%clk 00:09:10]} {[%emt 00:02:17]} Nd5 {[%clk 00:28:23]}
{[%emt 00:02:14]} 30. Rg4 {[%clk 00:07:26]} {[%emt 00:02:15]} Ne3 {[%clk
00:28:26]} {[%emt 00:00:26]} 31. Rh4+ {[%clk 00:07:50]} {[%emt 00:00:07]} Kg8
{[%clk 00:28:10]} {[%emt 00:00:47]} 32. Rg1 {[%clk 00:06:48]} {[%emt 00:01:25]}
Nef5 {[%clk 00:28:06]} {[%emt 00:00:40]} 33. Nxf5 {[%clk 00:06:58]} {[%emt
00:00:21]} Nxf5 {[%clk 00:28:25]} {[%emt 00:00:10]} 34. Bxf5 {[%clk 00:06:55]}
{[%emt 00:00:32]} exf5 {[%clk 00:28:48]} {[%emt 00:00:08]} 35. Rh5 {[%clk
00:06:25]} {[%emt 00:01:00]} Rc8 {[%clk 00:28:25]} {[%emt 00:00:53]} 36. Rxf5
{[%clk 00:06:41]} {[%emt 00:00:14]} Rac7 {[%clk 00:27:27]} {[%emt 00:01:28]} 37.
Rgg5 {[%clk 00:05:39]} {[%emt 00:01:32]} Kg7 {[%clk 00:27:18]} {[%emt
00:00:39]} 38. h4 {[%clk 00:04:28]} {[%emt 00:01:41]} f6 {[%clk 00:27:13]}
{[%emt 00:00:35]} 39. Rg2 {[%clk 00:03:27]} {[%emt 00:01:31]} Rxc5 {[%clk
00:27:21]} {[%emt 00:00:22]} 40. Rxc5 {[%clk 00:03:10]} {[%emt 00:00:47]} Rxc5
{[%clk 00:27:37]} {[%emt 00:00:14]} 1/2-1/2